Cogmind - Beta 10.1 @@@ ROGUE MODE // 2020.10.14 @ 18:33:20 Player: zzxc Result: Self-destructed Performance ------------- Evolutions (5) 2500 Regions Visited (7) 1400 Robots Destroyed (8) 40 Value Destroyed (122) 122 Prototype IDs (3) 60 Alien Tech Used (0) 0 Bonus (239) 239 TOTAL SCORE: 4361 Bonus ------- Pacifist 200 High Alert Combat Kills 39 Cogmind --------- Core Integrity 930/1000 Matter 105/300 Energy 100/100 System Corruption 0% Temperature Cool (0) Movement Core (50) Location -5/Factory Parts ------- > --- POWER (2) -------- (None) > --- PROPULSION (5) --- (None) > --- UTILITY (8) ------ Advanced Visual Processing Unit Long-range Sensor Array Improved Signal Interpreter Propulsion Shielding System Shield > --- WEAPON (2) ------- (None) > --- INVENTORY (4) ---- Cold Fusion Reactor Neutrino Core Improved Light Armor Plating Heavy Flail Peak State ------------ > --- POWER ------------ Cold Fusion Reactor > --- PROPULSION ------- Xenon Bombardment Thruster Field Propulsion Drive > --- UTILITY ---------- Advanced Visual Processing Unit Long-range Sensor Array Improved Signal Interpreter Advanced Terrain Scanner Propulsion Shielding System Shield > --- WEAPON ----------- Heavy Flail > --- INVENTORY -------- Neutrino Core Improved Light Armor Plating Heavy Pick [Rating: 36] Favorites ----------- Power Cold Fusion Reactor Reactor Cold Fusion Reactor Propulsion Xenon Bombardment Thruster Flight Unit Xenon Bombardment Thruster Utility Propulsion Shielding Device Long-range Sensor Array Processor Advanced Visual Processing Unit Hackware System Shield Protection Propulsion Shielding Weapon Heavy Flail Launcher Mini Grenade Launcher Impact Weapon Heavy Flail Build | -11 -10 -9 -9 -9 -7 -6 -5 ------- Run | Scr Mat Mat Sto Rec Fac Fac Fac Slots Evolved 10 | . . 2 . . 4 2 2 Power 1 | . . . . . 1 . . Propulsion 3 | . . 2 . . 1 . . Utility 6 | . . . . . 2 2 2 Weapon . | . . . . . . . . Parts Attached 16 | . . . 3 . 5 3 5 Power 1 | . . . . . . . 1 Engine . | . . . . . . . . Core . | . . . . . . . . Reactor 1 | . . . . . . . 1 Propulsion 5 | . . . 2 . 2 . 1 Treads . | . . . . . . . . Leg . | . . . . . . . . Wheel . | . . . . . . . . Hover . | . . . . . . . . Flight 5 | . . . 2 . 2 . 1 Utility 7 | . . . . . 2 3 2 Device 2 | . . . . . . . 2 Storage . | . . . . . . . . Processor 2 | . . . . . 1 1 . Hackware 1 | . . . . . . 1 . Protection 2 | . . . . . 1 1 . Artifact . | . . . . . . . . Weapon 3 | . . . 1 . 1 . 1 Energy Gun . | . . . . . . . . Energy Cannon . | . . . . . . . . Ballistic Gun . | . . . . . . . . Ballistic Cannon . | . . . . . . . . Launcher 1 | . . . 1 . . . . Special Weapon . | . . . . . . . . Impact Weapon 2 | . . . . . 1 . 1 Slashing Weapon . | . . . . . . . . Piercing Weapon . | . . . . . . . . Special Melee Weapon . | . . . . . . . . Unidentified Prototypes 1 | . . . . . . . 1 Parts Lost 7 | . . . 2 . 2 . 3 Power . | . . . . . . . . Propulsion 5 | . . . 2 . 1 . 2 Utility 1 | . . . . . . . 1 Weapon 1 | . . . . . 1 . . Highest Loss Streak 3 | . . . 2 . 2 . 3 Average Slot Usage (%) 27 | . . . 15 11 9 42 46 Flight 4 | . . . 6 . 1 6 8 Device 1 | . . . . . . . 6 Processor 5 | . . . . . . 11 11 Hackware 2 | . . . . . . 5 5 Protection 5 | . . . . . 3 12 6 Launcher 2 | . . . 8 11 3 . . Impact Weapon 2 | . . . . . 1 6 1 Naked Turns 48 | . 33 6 9 . . . . Heaviest Build 16 | . . . 1 1 4 7 16 Greatest Support 16 | 3 3 3 8 3 7 7 16 Greatest Overweight (x) 1 | . . . . . . . 1 Average Overweight (x) . | . . . . . . . . Largest Inventory Capacity 4 | 4 4 4 4 4 4 4 4 Average Capacity 4 | 4 4 4 4 4 4 4 4 Most Carried 4 | 3 . . . . 2 3 4 Average Carried 1 | 2 . . . . . 1 3 Final Capacity 4 | 4 4 4 4 4 4 4 4 Final Carried 4 | . . . . . 1 3 4 Class Distribution -------------------- 87% | Mutant 12% | Scout Dominant Class ---------------- Mutant | -10/Materials Mutant | -9/Materials Mutant | -9/Storage Mutant | -9/Recycling Mutant | -7/Factory Mutant | -6/Factory Scout | -5/Factory Resources | -11 -10 -9 -9 -9 -7 -6 -5 ----------- Run | Scr Mat Mat Sto Rec Fac Fac Fac Matter Collected 200 | 200 . . . . . . . Remotely . | . . . . . . . . Salvage Created 81 | . . . 28 . 53 . . Parts 8 | . . . 5 . 3 . . Haulers Intercepted . | . . . . . . . . Recyclers Shooed . | . . . . . . . . Parts Field Recycled . | . . . . . . . . Retrieved Matter . | . . . . . . . . Parts Self-Destructed . | . . . . . . . . Prevented . | . . . . . . . . Kills | -11 -10 -9 -9 -9 -7 -6 -5 ------- Run | Scr Mat Mat Sto Rec Fac Fac Fac Combat Hostiles Destroyed 7 | . . . 4 . 3 . . AOE 7 | . . . 4 . 3 . . Classes Destroyed 2 | . . . 2 . . . . Worker 1 | . . . 1 . . . . Swarmer 7 | . . . 4 . 3 . . Best Kill Streak 5 | . . . 5 . 3 . . Combat Bots Only 4 | . . . 4 . 3 . . Max Kills in Single Turn 3 | . . . 3 . 3 . . Gunslinging . | . . . . . . . . Exploded 3 | . . . 2 . 3 . . Melee . | . . . . . . . . Uniques/NPCs Destroyed . | . . . . . . . . Combat | -11 -10 -9 -9 -9 -7 -6 -5 -------- Run | Scr Mat Mat Sto Rec Fac Fac Fac Damage Taken 1132 | . 115 . 300 . 201 235 281 Core 710 | . 115 . 241 . 137 147 70 Absorbed by Shields . | . . . . . . . . Core Remaining (%) 71 | 100 54 . . 39 80 82 . Volleys Fired 7 | . . . 6 . 1 . . Largest 1 | . . . 1 . 1 . . Hottest 30 | . . . 30 . 30 . . Shots Fired 7 | . . . 6 . 1 . . Gun . | . . . . . . . . Cannon . | . . . . . . . . Launcher 7 | . . . 6 . 1 . . Special . | . . . . . . . . Kinetic . | . . . . . . . . Thermal . | . . . . . . . . Explosive 7 | . . . 6 . 1 . . Electromagnetic . | . . . . . . . . Robot Hit Streak . | . . . . . . . . Robot Miss Streak 1 | . . . 1 . . . . Penetration Max . | . . . . . . . . Secondary Targets . | . . . . . . . . Shots Hit Robots . | . . . . . . . . Core Hits 11 | . 1 . 5 . 5 . . Critical Hits . | . . . . . . . . Critical Kills . | . . . . . . . . Critical Parts Destroyed . | . . . . . . . . Melee Attacks 5 | . . . . . 3 1 1 Impact 5 | . . . . . 3 1 1 Slashing . | . . . . . . . . Piercing . | . . . . . . . . Sneak Attacks . | . . . . . . . . Combat Hostiles . | . . . . . . . . Follow-up Attacks . | . . . . . . . . Damage Inflicted 445 | . 9 . 247 . 189 . . Guns . | . . . . . . . . Cannons . | . . . . . . . . Explosions 436 | . . . 247 . 189 . . Melee . | . . . . . . . . Ramming 9 | . 9 . . . . . . Kinetic . | . . . . . . . . Thermal . | . . . . . . . . Explosive 436 | . . . 247 . 189 . . Electromagnetic . | . . . . . . . . Impact . | . . . . . . . . Slashing . | . . . . . . . . Piercing . | . . . . . . . . Highest Corruption 1 | . . . . . . 1 . Average Corruption 1 | . . . . . . 1 . Corruption Purged . | . . . . . . . . Overload Shots . | . . . . . . . . Overflow Damage 10 | . . . 10 . . . . Projectiles . | . . . . . . . . Explosions 10 | . . . 10 . . . . Melee . | . . . . . . . . Knockbacks . | . . . . . . . . Impact . | . . . . . . . . Kinetic . | . . . . . . . . Secondary . | . . . . . . . . Self-Inflicted Damage 81 | . 4 . 77 . . . . Shots 3 | . . . 3 . . . . Rammed 1 | . 1 . . . . . . Targets Rammed 1 | . 1 . . . . . . Kicked . | . . . . . . . . Crushed . | . . . . . . . . Highest Temperature . | . . . . . . . . Average Temperature . | . . . . . . . . Received Heat Transfer 198 | . 60 . 63 . 12 54 9 Siege Activations . | . . . . . . . . Robots Corrupted . | . . . . . . . . Combat Hostiles . | . . . . . . . . Parts Fried . | . . . . . . . . Impact Corruptions . | . . . . . . . . Robots Melted . | . . . . . . . . Combat Hostiles . | . . . . . . . . Parts Melted . | . . . . . . . . Heat Transferred . | . . . . . . . . Parts Sabotaged . | . . . . . . . . Parts Stolen . | . . . . . . . . Parts Stripped . | . . . . . . . . Power Chain Reactions . | . . . . . . . . Missiles Intercepted . | . . . . . . . . Alert | -11 -10 -9 -9 -9 -7 -6 -5 ------- Run | Scr Mat Mat Sto Rec Fac Fac Fac Peak Influence 799 | . 24 9 135 91 799 463 248 Initial 637 | . . 9 3 52 637 391 226 Average 340 | . 13 9 100 75 723 421 233 Maximum Alert Level 3 | . . . . . 3 2 1 Low Security (%) 27 | 100 100 100 100 100 . . . Level 1 35 | . . . . . . 41 100 Level 2 26 | . . . . . 49 58 . Level 3 10 | . . . . . 50 . . Level 4 . | . . . . . . . . Level 5 . | . . . . . . . . High Security . | . . . . . . . . Max Security . | . . . . . . . . Squads Dispatched 9 | . 2 . 1 . . 4 2 Investigation 3 | . 1 . . . . 2 . Extermination . | . . . . . . . . Reinforcement 6 | . 1 . 1 . . 2 2 Assault . | . . . . . . . . Garrison . | . . . . . . . . Intercept . | . . . . . . . . Construction Impeded . | . . . . . . . . Haulers Reinforced . | . . . . . . . . Stealth | -11 -10 -9 -9 -9 -7 -6 -5 --------- Run | Scr Mat Mat Sto Rec Fac Fac Fac Distress Signals 3 | . 1 . . . . 2 . Communications Jammed . | . . . . . . . . Distress Signals . | . . . . . . . . Times Spotted 63 | . 7 . 8 3 6 22 17 Peak Tracking Total 10 | . 8 . 6 4 5 10 10 Tactical Retreats 7 | . . . . . 1 3 3 Traps | -11 -10 -9 -9 -9 -7 -6 -5 ------- Run | Scr Mat Mat Sto Rec Fac Fac Fac Traps Triggered 2 | . . . . . . 2 . Indirectly . | . . . . . . . . Trap Hack Attempts . | . . . . . . . . Triggered . | . . . . . . . . Disarmed . | . . . . . . . . Reprogrammed . | . . . . . . . . Reused . | . . . . . . . . Traps Extracted . | . . . . . . . . Installed . | . . . . . . . . Triggered . | . . . . . . . . Machines | -11 -10 -9 -9 -9 -7 -6 -5 ---------- Run | Scr Mat Mat Sto Rec Fac Fac Fac Machines Disabled . | . . . . . . . . Max in Single Turn . | . . . . . . . . Machines Sabotaged . | . . . . . . . . Garrisons Compromised . | . . . . . . . . Overloaded Fab Kills . | . . . . . . . . Fab Network Shutdowns . | . . . . . . . . Hacking | -11 -10 -9 -9 -9 -7 -6 -5 --------- Run | Scr Mat Mat Sto Rec Fac Fac Fac Machines Accessed 14 | . 2 . 3 2 2 5 . Terminals 13 | . 2 . 3 1 2 5 . Fabricators . | . . . . . . . . Repair Stations . | . . . . . . . . Recycling Units 1 | . . . . 1 . . . Scanalyzers . | . . . . . . . . Garrison Access . | . . . . . . . . Total Hacks 43 | . 5 . 8 5 7 18 . Successful 16 | . 2 . 3 3 3 5 . Failed 26 | . 3 . 4 2 4 13 . Catastrophic 7 | . . . 1 . . 6 . Database Lockouts 1 | . . . 1 . . . . Manual 29 | . 5 . 9 1 1 13 . Terminals 42 | . 5 . 8 4 7 18 . Fabricators . | . . . . . . . . Repair Stations . | . . . . . . . . Recycling Units 1 | . . . . 1 . . . Scanalyzers . | . . . . . . . . Garrison Access . | . . . . . . . . Terminal Hacks 11 | . 2 . 2 2 2 3 . Prototype ID Bank 1 | . . . 1 . . . . Level Access Points 4 | . 1 . . 1 1 1 . Branch Access Points 1 | . . . 1 . . . . Terminal Index 1 | . . . . . 1 . . Locate Traps 1 | . . . . . . 1 . Zone Layout 3 | . 1 . . 1 . 1 . Fabricator Hacks . | . . . . . . . . Repair Station Hacks . | . . . . . . . . Recycling Unit Hacks 1 | . . . . 1 . . . Retrieve Components 1 | . . . . 1 . . . Scanalyzer . | . . . . . . . . Garrison Access Hacks . | . . . . . . . . Unauthorized Hacks 4 | . . . 1 . 1 2 . Terminals 4 | . . . 1 . 1 2 . Botnet 4 | . . . 1 . 1 2 . Fabricators . | . . . . . . . . Repair Stations . | . . . . . . . . Recycling Units . | . . . . . . . . Scanalyzers . | . . . . . . . . Garrison Access . | . . . . . . . . Data Cores Recovered . | . . . . . . . . Used . | . . . . . . . . Hacking Detections 12 | . 1 . 3 1 2 5 . Full Trace Events 3 | . 1 . . . . 2 . Feedback Events 1 | . . . . . . 1 . Corruption 1 | . . . . . . 1 . Feedback Blocked . | . . . . . . . . Robot Schematics Acquired . | . . . . . . . . Robots Built . | . . . . . . . . Matter . | . . . . . . . . Time . | . . . . . . . . Total Robot Build Rating . | . . . . . . . . Part Schematics Acquired . | . . . . . . . . Parts Built . | . . . . . . . . Matter . | . . . . . . . . Time . | . . . . . . . . Total Part Build Rating . | . . . . . . . . Parts Repaired . | . . . . . . . . Time . | . . . . . . . . Parts Recycled . | . . . . . . . . Recycled Matter . | . . . . . . . . Retrieved Matter . | . . . . . . . . Retrieved Components 2 | . . . . 2 . . . Parts Scanalyzed . | . . . . . . . . Part Schematics Acquired . | . . . . . . . . Parts Damaged . | . . . . . . . . Bothacking | -11 -10 -9 -9 -9 -7 -6 -5 ------------ Run | Scr Mat Mat Sto Rec Fac Fac Fac Used RIF Installer . | . . . . . . . . Robots Hacked . | . . . . . . . . Non-combat . | . . . . . . . . Combat . | . . . . . . . . Robot Hacks Applied . | . . . . . . . . Relay Couplers Released . | . . . . . . . . Robots Rewired . | . . . . . . . . Allies Hacked . | . . . . . . . . Hacks Repelled . | . . . . . . . . Allies | -11 -10 -9 -9 -9 -7 -6 -5 -------- Run | Scr Mat Mat Sto Rec Fac Fac Fac Total Allies . | . . . . . . . . Largest Group . | . . . . . . . . Highest-Rated Group . | . . . . . . . . Highest-Rated Ally . | . . . . . . . . Total Orders . | . . . . . . . . Ally Attacks . | . . . . . . . . Total Damage . | . . . . . . . . Kills . | . . . . . . . . Allies Corrupted . | . . . . . . . . Allies Melted . | . . . . . . . . Intel | -11 -10 -9 -9 -9 -7 -6 -5 ------- Run | Scr Mat Mat Sto Rec Fac Fac Fac Robot Analysis Total . | . . . . . . . . Derelict Logs Recovered . | . . . . . . . . Drone Launches . | . . . . . . . . Drone Recoveries . | . . . . . . . . Exploration | -11 -10 -9 -9 -9 -7 -6 -5 ------------- Run | Scr Mat Mat Sto Rec Fac Fac Fac Turns Passed 519 | 2 33 6 53 51 109 139 126 Spaces Moved 1009 | 1 64 12 78 102 184 278 290 Core 384 | 1 64 12 53 102 151 . 1 Treads . | . . . . . . . . Legs . | . . . . . . . . Wheels . | . . . . . . . . Hover . | . . . . . . . . Flight 625 | . . . 25 . 33 278 289 Fastest Speed 37 | 50 50 50 37 50 40 40 37 Average Speed 43 | 50 50 50 46 50 48 40 38 Slowest Speed 100 | 50 50 50 50 50 50 40 100 Overloaded Moves . | . . . . . . . . Propulsion Burnouts . | . . . . . . . . Robots Hopped 12 | . . . 1 . 2 7 2 Cave-ins Triggered . | . . . . . . . . Exploration Rate (%) 17 | 3 25 2 23 42 11 17 19 Regions Visited 7 Branch Regions 2 Pre-discovered Areas . | . . . . . . . . Known Exits Taken 5 | . 1 . 1 1 1 1 . Unknown Exits Taken 2 | 1 . 1 . . . . . Scrap Searched . | . . . . . . . . Spaces Dug 40 | . . . 36 . 2 1 1 Terrain Destroyed 60 | . . . 52 . 6 1 1 Melee 4 | . . . . . 2 1 1 Projectile . | . . . . . . . . AOE 56 | . . . 52 . 4 . . Terrain Rammed . | . . . . . . . . Walls Destroyed . | . . . . . . . . Machines Disabled . | . . . . . . . . Actions | -11 -10 -9 -9 -9 -7 -6 -5 --------- Run | Scr Mat Mat Sto Rec Fac Fac Fac Total 1054 | 4 64 11 85 101 192 295 302 Wait 2 | . . . . . . . 2 Move 978 | . 63 11 75 101 179 263 286 Hop 12 | . . . 1 . 2 7 2 Pick Up 6 | . . . . . 2 3 1 Fast Attach 11 | . . . 3 . 4 2 2 Attach 5 | . . . . . 1 1 3 Detach 4 | . . . . . . . 4 Swap . | . . . . . . . . Drop 5 | 4 . . . . . . 1 Fire 7 | . . . 6 . 1 . . Melee 5 | . . . . . 3 1 1 Ram 1 | . 1 . . . . . . Kick . | . . . . . . . . Crush . | . . . . . . . . Escape Stasis 18 | . . . . . . 18 . Rewire . | . . . . . . . . Trap . | . . . . . . . . Miscellaneous . | . . . . . . . . Route ------- -11/Scrapyard -10/Materials (discovered 3 exits: *Mat x3) -9/Materials -9/Storage -9/Recycling -7/Factory (discovered 4 exits: *Fac x4) -6/Factory (discovered 4 exits: *Fac x4) -5/Factory History --------- Turn | Location | Event 1 | -11/Scrapyard | Released all parts (6) 3 | -11/Scrapyard | Discovered new exit (range 0) 3 | -11/Scrapyard | Entered Materials 6 | -10/Materials | Identified exit to Materials 36 | -10/Materials | Entered another Materials area 36 | -9/Materials | Evolved 2 slots: Propulsion x2 38 | -9/Materials | Discovered new exit (range 10) 42 | -9/Materials | Entered Storage 63 | -9/Storage | Identified exit to Recycling 70 | -9/Storage | Core integrity fell below 50% 93 | -9/Storage | Used back door to open Recycling access 93 | -9/Storage | Central database locked down 95 | -9/Storage | Entered Recycling 110 | -9/Recycling | Spotter reported a threat 117 | -9/Recycling | Spotter reported a threat 130 | -9/Recycling | Identified exit to Factory 136 | -9/Recycling | Spotter reported a threat 137 | -9/Recycling | Spotter reported a threat 146 | -9/Recycling | Entered Factory 146 | -7/Factory | Evolved 4 slots: Power x1, Propulsion x1, Utility x2 185 | -7/Factory | Identified exit to Factory 255 | -7/Factory | Entered another Factory area 255 | -6/Factory | Evolved 2 slots: Utility x2 312 | -6/Factory | Build established: Mutant 375 | -6/Factory | Identified exit to Factory 394 | -6/Factory | Entered another Factory area 394 | -5/Factory | Evolved 2 slots: Utility x2 520 | -5/Factory | Self-destructed Last Messages --------------- 00439_ Penetrated by Slug. 00440_ U-05 Engineer lays Concrete. 00443_ K-01 Serf cleans the Matter Pump. 00464_ Acquired Adv. Terrain Scanner. 00467_ O-24 Administrator: "IFF HANDSHAKE FAILED. SECURING TERMINAL." 00469_ ALERT: Hostiles spotted, dispatching reinforcements to Terminal F008. 00487_ Penetrated by Slug. 00487_ Slug penetrates Wall. 00508_ O-24 Administrator: "IFF HANDSHAKE FAILED. SECURING TERMINAL." 00508_ Slug penetrates Wall. 00508_ Xenon Bombardment Thruster destroyed. 00508_ Dropped Hvy. Pick. 00511_ Slug penetrates Wall. 00514_ O-24 Administrator uses terminal to summon reinforcements. 00514_ ALERT: Hostiles spotted, dispatching reinforcements to Terminal F002. 00514_ O-24 Administrator locks terminal. 00519_ Field Propulsion Drive destroyed. 00520_ Adv. Terrain Scanner destroyed. Map ----- +----------------------------------------------------+ | | | | | | | | | | | | | | | | | | | | | | | | | | | ?????????????????????????????????????????????????? | | ?????????????????????????????????????????????????? | | ?????????????????????????????????????????????????? | | ?????????????????????????????????????????????????? | | ?????????????????????????????????????????????????? | | ?????????????????????????????????????????????????? | | ?????????????????????????????????????????????????? | | ?????????????????????????????????????????????????? | | ?????????????????????????????????????????????????? | | ????????????????????????????????#####????????????? | | ??????????????????????????????? #????????????? | | ???????????????????###+######## #????????????? | | ???????????????????# @ ! #????????????? | | ???????????????????# ### #???????????#? | | ???????????????????# #?? #????????????? | | ???????????????????+ ##############???????? | | ???????????????????# ! * +?? ######### | | ???????????????????# s #?? """"## | | ???????????????????# """ """s #? """"## " | | ???????????????????# """ """ss #? """"## " | | ???????????????????# """ """ # """"## " | | ???????????????????# # """"## " | | ???????????????????#"" """ t/ """"## " | | ???????????????????#"" """ # """"## " | | ???????????????????#"" """ # ## ! | | ???????????????????#T ########### " | | ???????????????????#"" """ / + " | | ???????????????????#"" """ #### " | | ???????????????????#"" """ #??# " | | ???????????????????# #??# " | | ???????????????????#! #??# " | | ???????????????????# ###+##### #??# | | ???????????????????# ? ?? ??# ##########+ | | ????????????????? ?# ??????# | | ???????????????? ???#???????# | | ????????????????? ? ????????????# | | ??????????????????? ?????????????# | +----------------------------------------------------+ Best States ------------- Heat Dissipation 40 Energy Generation 17 Energy Capacity 200 Matter Stores 300 Matter Capacity 300 Sight Range 20 Robot Scan Range 20 Terrain Scan Range 20 Terrain Scan Density 10 Armor Coverage 150 Propulsion Shielding 33 Evasion (%) 62 Defensive Hacking 10 Item Schematics ----------------- None Robot Schematics ------------------ None Fabricated ------------ Nothing Alien Tech Used ----------------- None Achievements -------------- None Challenges ------------ None Game ------ Seed PhasingThunderCorpse Manual? 0 Play Time 00:23:42 Cumulative 345.4 hours Start 2020.10.14 @ 18:14:12 End 2020.10.14 @ 18:33:20 Sessions 1 Manual Loads 0 Difficulty Rogue Special Mode None Game No. 618 Rogue 618 Adventurer 0 Explorer 0 Win Type - Total 55 Types 42/4/3/2/1/1/2/0/0 Lore% 93 Gallery% 90 Achievement% 73 Wizard Run 0 Options --------- ASCII 1 Keyboard 1 Movement Numpad Keybinds 0 Fullscreen 2 Font 24/Terminus Map View 76x50 Tactical HUD 1 Map Filters NONE Filters NONE Steam 1 RUN: bf5d3800-2f7e-44b3-8689-9307621155d8